bitfinex-derivatives/quotes_BNBF0:USTF0_20250330
["timestamp","ask_amount","ask_price","bid_price","bid_amount"]
[1743373751323,3.256,597.57,596.71,0.33517118]
[1743373783861,3.256,597.57,596.76,2.55840015]
[1743373784057,3.256,597.57,596.78,0.33513187]
[1743373785358,3.256,597.57,596.8,2.55840015]
[1743373785562,3.256,597.57,596.81,0.33511502]
[1743373788062,3.256,597.57,596.82,2.55840015]
[1743373789063,3.256,597.57,596.83,0.33510379]
[1743373790463,3.256,597.57,596.92,2.55840015]
[1743373790668,3.256,597.57,596.93,0.33504766]
[1743373802672,3.256,597.57,597.09,2.55840015]
[1743373803070,3.256,597.57,597.1,0.33495226]
[1743373803980,3.256,597.57,597.1,2.89335241]
[1743373805679,3.256,597.57,597.14,2.55840015]
[1743373806975,3.256,597.57,597.1,0.33495226]
[1743373806976,3.256,597.57,597.13,2.55840015]
[1743373807478,3.256,597.57,597.14,0.33492983]
[1743373815884,3.256,597.57,597.2,2.55840015]
[1743373816076,3.256,597.57,597.21,0.33489057]
[1743373816481,1.22530452,598.57,597.21,0.33489057]
[1743373817077,0.29118537,598.58,597.21,0.33489057]
[1743373818175,10.32317589,598.75,597.21,0.33489057]
[1743373818382,12.65006543,598.74,597.21,0.33489057]
[1743373818581,7.60658512,598.73,597.21,0.33489057]
[1743373818879,2.64632295,598.72,597.21,0.33489057]
[1743373819179,1.86658499,598.71,597.21,0.33489057]
[1743373819385,2.29097309,598.7,597.21,0.33489057]
[1743373819685,0.64129208,598.69,597.21,0.33489057]
[1743373819883,0.64129766,598.68,597.3,2.55840015]
[1743373820085,1.63101074,598.66,597.31,0.3348345]
[1743373820280,0.6413144,598.65,597.31,0.3348345]
[1743373820587,0.64131998,598.64,597.31,0.3348345]
[1743373820785,0.64132556,598.63,597.31,0.3348345]
[1743373820987,0.64133114,598.62,597.32,2.55840015]
[1743373821180,0.30722938,598.61,597.33,0.33482329]
[1743373821579,0.5982735,598.61,597.33,0.33482329]
[1743373821785,0.30722938,598.6,597.33,0.33482329]
[1743373822181,4.73863772,598.6,597.34,2.55840015]
[1743373822386,4.82201317,598.59,597.35,0.33481208]
[1743373822687,2.75777614,598.58,597.35,0.33481208]
[1743373822881,0.30722938,598.57,597.35,0.33481208]
[1743373823079,2.75796782,598.57,597.35,0.33481208]
[1743373823279,0.30722938,598.56,597.35,0.33481208]
[1743373823585,6.30420149,598.56,597.35,0.33481208]
[1743373823786,8.10864289,598.55,597.35,0.33481208]
[1743373823987,7.77450205,598.54,597.35,0.33481208]
[1743373824287,7.77450205,598.53,597.35,0.33481208]
[1743373824489,8.10865963,598.52,597.35,0.33481208]
[1743373824688,7.60704374,598.51,597.35,0.33481208]
[1743373824888,7.60704932,598.5,597.35,0.33481208]
[1743373825088,7.6070549,598.49,597.35,0.33481208]
[1743373825284,8.10897429,598.48,597.35,0.33481208]
[1743373825489,5.79181221,598.47,597.35,0.33481208]
[1743373825691,4.1802681,598.46,597.35,0.33481208]
[1743373825889,3.84607701,598.45,597.35,0.33481208]
[1743373826087,5.66153082,598.44,597.35,0.33481208]
[1743373826288,6.29681545,598.43,597.35,0.33481208]
[1743373826482,6.29681545,598.42,597.35,0.33481208]
[1743373826688,6.29681545,598.41,597.35,0.33481208]
[1743373826888,6.29623567,598.4,597.35,0.33481208]
[1743373827084,3.92941905,598.39,597.35,0.33481208]
[1743373827285,1.47926039,598.38,597.35,0.33481208]
[1743373827486,4.13204255,598.39,597.35,0.33481208]
[1743373827985,3.18945084,598.39,597.35,0.33481208]
[1743373828390,0.94259171,598.41,597.35,0.33481208]
[1743373828590,0.33419109,598.46,597.35,0.33481208]
[1743373832593,4.13223669,598.66,597.35,0.33481208]
[1743373832796,1.47972223,598.65,597.35,0.33481208]
[1743373832990,2.42250808,598.65,597.35,0.33481208]
[1743373833393,3.64921994,598.66,597.35,0.33481208]
[1743373834198,5.61195892,598.66,597.35,0.33481208]
[1743373834400,2.42250808,598.65,597.35,0.33481208]
[1743373834799,2.42243981,598.65,597.35,0.33481208]
[1743373837500,3.18945084,598.66,597.35,0.33481208]
[1743373838000,1.22671186,598.71,597.35,0.33481208]
[1743373838798,1.22671186,598.71,597.43,2.55840015]
[1743373838997,1.22671186,598.71,597.44,0.33476164]
[1743373841903,0.29093463,598.9,597.44,0.33476164]
[1743373845401,2.42030007,598.92,597.44,0.33476164]
[1743373845402,2.42030007,598.91,597.44,0.33476164]
[1743373845605,2.42030007,598.9,597.44,0.33476164]
[1743373845805,2.42030007,598.89,597.44,0.33476164]
[1743373846004,2.42030007,598.88,597.44,0.33476164]
[1743373846206,2.42030007,598.87,597.44,0.33476164]
[1743373846406,1.47853251,598.86,597.44,0.33476164]
[1743373846607,3.18854084,598.89,597.44,0.33476164]
[1743373846805,2.4187229,598.88,597.44,0.33476164]
[1743373847006,0.2909845,598.9,597.44,0.33476164]
[1743373847007,2.4187229,598.87,597.44,0.33476164]
[1743373847207,0.2909845,598.9,597.44,0.33476164]
[1743373847507,0.566,598.66,597.44,0.33476164]
[1743373862823,1.621,598.65,597.44,0.33476164]
[1743373869134,0.57,598.64,597.44,0.33476164]
[1743373881541,1.393,598.63,597.44,0.33476164]
[1743373885143,0.573,598.62,597.44,0.33476164]
[1743373885945,0.573,598.62,597.73,2.55840015]
[1743373886141,0.573,598.62,597.75,0.33458803]
[1743373905163,1.514,598.61,597.75,0.33458803]
[1743373910668,1.166,598.6,597.75,0.33458803]
[1743373912972,0.579,598.59,597.75,0.33458803]
[1743373922778,1.868,598.58,597.75,0.33458803]
[1743373925680,3.222,598.58,597.75,0.33458803]
[1743373930284,3.222,598.58,597.8,2.55840015]
[1743373930988,3.222,598.58,597.81,0.33455445]
[1743373940086,3.222,598.58,597.81,2.8929546]
[1743373940890,3.222,598.58,597.81,0.33455445]
[1743373941491,3.808,598.58,597.81,0.33455445]
[1743373971021,3.808,598.58,597.46,2.55840015]
[1743373971022,3.808,598.58,597.42,2.55840015]
[1743373971321,3.808,598.58,597.43,0.33476725]
[1743373971520,3.808,598.58,597.53,0.29097841]
[1743373971715,1.22696602,598.57,597.43,0.33476725]
[1743373972620,1.22696602,598.57,597.44,0.29101613]
[1743373972817,3.222,598.58,597.44,0.62577777]
[1743373976021,3.816,598.58,597.44,0.62577777]
[1743373978923,1.2242137,598.57,597.44,0.62577777]
[1743373980320,1.2242137,598.57,597.44,0.33476164]
[1743373980522,0.594,598.58,597.44,0.33476164]
[1743373981523,0.29109403,598.57,597.44,0.62585567]
[1743373982125,1.83109403,598.57,597.44,0.62585567]
[1743373983219,1.54,598.57,597.44,0.33476164]
[1743373984426,2.918,598.57,597.44,0.33476164]
[1743373984627,0.29117928,598.56,597.44,0.33476164]
[1743373985128,2.70698453,598.56,597.44,0.33476164]
[1743373985327,1.2242137,598.55,597.44,0.33476164]
[1743373985626,2.16440593,598.55,597.44,0.33476164]
[1743373985820,3.64001895,598.55,597.44,0.33476164]
[1743373986225,1.2242137,598.54,597.44,0.33476164]
[1743373986427,3.64001895,598.54,597.44,0.33476164]
[1743373986621,3.93107524,598.54,597.44,0.33476164]
[1743373986822,2.69982672,598.53,597.44,0.33476164]
[1743373987022,3.64001895,598.53,597.44,0.33476164]
[1743373987226,2.41580525,598.52,597.44,0.33476164]
[1743373987424,1.2242137,598.53,597.44,0.33476164]
[1743373987622,1.2242137,598.52,597.44,0.33476164]
[1743373988223,1.2242137,598.51,597.44,0.33476164]
[1743373989130,1.51526999,598.54,597.44,0.33476164]
[1743373989330,1.2242137,598.54,597.44,0.33476164]
[1743373990128,2.918,598.57,597.44,0.33476164]
[1743373991731,3.515,598.57,597.44,0.33476164]
[1743374000936,3.515,598.57,597.43,0.29097841]
[1743374001332,3.515,598.57,597.19,2.55840015]
[1743374002343,3.515,598.57,597.18,2.55840015]
[1743374002740,3.515,598.57,597.2,0.29097112]
[1743374004239,3.515,598.57,597.18,2.55840015]
[1743374004447,3.515,598.57,597.14,2.55840015]
[1743374005540,3.515,598.57,597.15,0.29094801]
[1743374005738,3.515,598.57,597.29,2.55840015]
[1743374007941,3.515,598.57,597.24,2.55840015]
[1743374009649,3.515,598.57,597.34,2.55840015]
[1743374012049,3.515,598.57,597.25,0.29088234]
[1743374012050,3.515,598.57,597.28,2.55840015]
[1743374014245,3.515,598.57,597.21,2.55840015]
[1743374014649,3.515,598.57,597.26,0.29089207]
[1743374016450,3.515,598.57,597.21,2.55840015]
[1743374017651,3.515,598.57,597.22,0.29091031]
[1743374017854,3.515,598.57,597.25,2.55840015]
[1743374018652,3.515,598.57,597.22,0.29091031]
[1743374019344,3.515,598.57,597.17,2.55840015]
[1743374020450,3.515,598.57,597.22,2.55840015]
[1743374022755,3.515,598.57,597.28,2.55840015]
[1743374024557,3.515,598.57,597.2,2.55840015]
[1743374025858,3.515,598.57,591.61,5.95099135]
[1743374025859,3.515,598.57,597.25,2.55840015]
[1743374027361,3.515,598.57,597.21,0.29092976]
[1743374027362,3.515,598.57,597.32,2.55840015]
[1743374028669,3.515,598.57,597.38,2.55840015]
[1743374029664,3.515,598.57,597.4,0.33478406]
[1743374030362,3.50849287,598.57,597.4,0.33478406]
[1743374031966,3.50849287,598.57,597.41,2.55840015]
[1743374032165,3.50849287,598.57,597.43,0.33476725]
[1743374046277,3.50849287,598.57,597.47,2.55840015]
[1743374046477,3.50849287,598.57,597.49,0.33473363]
[1743374046676,1.975,598.57,597.49,0.33473363]
[1743374048174,1.975,598.57,597.53,2.55840015]
[1743374048379,1.975,598.57,597.55,0.33470002]
[1743374049480,1.975,598.57,597.59,2.55840015]
[1743374049679,1.975,598.57,597.61,0.33466642]
[1743374051378,1.975,598.57,597.65,2.55840015]
[1743374051580,1.975,598.57,597.67,0.33463282]
[1743374061689,1.975,598.57,597.8,2.55840015]
[1743374061884,1.975,598.57,597.93,2.55840015]
[1743374062088,1.975,598.57,597.94,0.33448172]
[1743374082203,1.975,598.57,597.99,2.55840015]
[1743374082603,1.975,598.57,598.0,0.33444816]
[1743374085101,1.975,598.57,598.01,2.55840015]
[1743374085298,1.975,598.57,598.02,0.33443697]
[1743374088810,1.835,598.81,598.02,0.33443697]
[1743374091305,1.206,598.8,598.02,0.33443697]
[1743374092813,0.607,598.79,598.02,0.33443697]
[1743374106321,1.549,598.78,598.02,0.33443697]
[1743374112530,0.609,598.77,598.02,0.33443697]
[1743374116228,0.609,598.77,598.02,2.89283712]
[1743374117736,0.609,598.77,598.03,2.55840015]
[1743374118034,0.609,598.77,598.04,0.33442579]
[1743374124734,0.609,598.77,598.05,2.55840015]
[1743374124935,0.609,598.77,598.06,0.3344146]
[1743374129144,0.609,598.77,598.19,2.55840015]
[1743374129345,0.609,598.77,598.2,0.33433634]
[1743374130846,0.609,598.77,598.24,2.55840015]
[1743374131044,0.609,598.77,598.25,0.33430839]
[1743374133145,0.31853769,598.77,598.25,0.33430839]
[1743374133646,1.206,598.8,598.25,0.33430839]
[1743374134147,1.578,599.13,598.25,0.33430839]
[1743374134844,1.578,599.13,598.37,2.55840015]
[1743374135241,1.578,599.13,598.38,0.33423576]
[1743374152559,1.47,599.28,598.38,0.33423576]
[1743374158362,1.47,599.28,598.44,2.55840015]
[1743374158663,1.17974966,599.28,598.46,0.33419109]
[1743374158863,1.854,599.63,598.46,0.33419109]
[1743374159866,1.854,599.63,598.7,2.55840015]
[1743374160960,1.854,599.63,598.72,0.33404596]
[1743374161562,1.854,599.63,598.83,2.55840015]
[1743374161860,1.854,599.63,598.84,0.33397902]
[1743374172071,1.531,599.63,598.84,0.33397902]
[1743374172571,1.531,599.63,598.96,2.55840015]
[1743374172771,1.531,599.63,598.97,0.33390653]
[1743374173874,1.495,599.91,598.97,0.33390653]
[1743374174067,1.495,599.91,598.98,2.55840015]
[1743374174769,1.495,599.91,599.0,0.33388981]
[1743374179877,0.325,600.03,599.0,0.33388981]
[1743374181876,1.712,600.08,599.0,0.33388981]
[1743374182283,3.76487169,601.63,599.0,0.33388981]
[1743374182480,1.347,600.48,599.0,0.33388981]
[1743374183082,1.347,600.48,599.26,2.55840015]
[1743374183480,1.347,600.48,599.28,0.33373381]
[1743374184987,0.326,600.47,599.28,0.33373381]
[1743374185693,1.542,600.46,599.28,0.33373381]
[1743374201709,1.542,600.46,599.59,2.55840015]
[1743374201911,1.542,600.46,599.61,0.33355014]
[1743374204613,1.542,600.46,599.64,2.55840015]
[1743374204807,1.542,600.46,599.66,0.33352232]
[1743374207008,1.542,600.46,599.67,2.55840015]
[1743374207210,1.542,600.46,599.68,0.3335112]
[1743374208112,1.542,600.46,599.77,2.55840015]
[1743374208310,1.542,600.46,599.78,0.3334556]
[1743374209816,1.542,600.46,599.88,2.55840015]
[1743374210016,1.542,600.46,599.89,0.33339445]
[1743374212918,0.326,600.47,599.89,0.33339445]
[1743374213112,1.45302435,602.2,599.89,0.33339445]
[1743374213312,2.41219715,602.2,599.89,0.33339445]
[1743374213517,6.68875015,602.2,599.89,0.33339445]
[1743374213721,7.35849228,602.19,599.89,0.33339445]
[1743374214018,0.28951868,602.07,599.89,0.33339445]
[1743374215115,0.92776813,602.14,599.89,0.33339445]
[1743374215319,1.16843181,602.15,599.89,0.33339445]
[1743374215715,0.28948977,602.19,599.89,0.33339445]
[1743374215918,1.392,601.63,599.97,2.55840015]
[1743374216124,1.392,601.63,599.99,0.33333888]
[1743374217122,0.332,601.62,599.99,0.33333888]
[1743374217724,1.883,601.61,599.99,0.33333888]
[1743374247842,0.339,601.6,599.99,0.33333888]
[1743374253546,1.266,601.59,599.99,0.33333888]
[1743374258855,1.756,601.58,599.99,0.33333888]
[1743374263156,1.756,601.58,600.0,2.55840015]
[1743374263357,1.756,601.58,600.02,0.33332222]
[1743374264556,1.756,601.58,600.1,2.55840015]
[1743374264755,1.756,601.58,600.12,0.33326667]
[1743374267357,2.1,601.58,600.12,0.33326667]
[1743374272666,2.38962469,601.58,600.12,0.33326667]
[1743374274065,0.30566355,601.57,600.12,0.33326667]
[1743374274671,2.66876381,601.57,600.12,0.33326667]
[1743374274872,0.30566355,601.56,600.12,0.33326667]
[1743374275369,2.66876381,601.56,600.12,0.33326667]
[1743374275572,0.30566355,601.55,600.12,0.33326667]
[1743374275871,0.33247996,601.54,600.12,0.33326667]
[1743374276071,0.30566355,601.53,600.12,0.33326667]
[1743374277475,4.14231647,601.53,600.12,0.33326667]
[1743374277974,0.30566355,601.52,600.12,0.33326667]
[1743374278176,3.83665292,601.53,600.12,0.33326667]
[1743374278475,3.04846805,601.52,600.12,0.33326667]
[1743374278774,5.73356365,601.52,600.12,0.33326667]
[1743374278973,3.83665292,601.51,600.12,0.33326667]
[1743374279176,4.66555357,601.5,600.12,0.33326667]
[1743374279473,6.13910623,601.49,600.12,0.33326667]
[1743374279669,3.83665292,601.48,600.12,0.33326667]
[1743374279873,3.83665292,601.47,600.12,0.33326667]
[1743374280272,1.17251905,601.46,600.12,0.33326667]
[1743374280467,3.53561931,601.46,600.12,0.33326667]
[1743374280675,2.36310026,601.45,600.12,0.33326667]
[1743374280869,0.92184712,601.45,600.12,0.33326667]
[1743374281069,0.33247996,601.54,600.12,0.33326667]
[1743374281776,0.30571716,601.53,600.12,0.33326667]
[1743374282875,5.51542426,601.53,600.12,0.33326667]
[1743374283074,0.30571716,601.52,600.12,0.33326667]
[1743374283473,4.82465081,601.52,600.12,0.33326667]
[1743374283775,1.43842663,601.51,600.12,0.33326667]
[1743374283970,6.41728501,601.51,600.12,0.33326667]
[1743374284174,3.82793323,601.5,600.12,0.33326667]
[1743374284373,1.4704656,601.49,600.12,0.33326667]
[1743374284576,0.919041,601.49,600.12,0.33326667]
[1743374284778,1.267041,601.5,600.12,0.33326667]
[1743374285178,5.34845228,601.5,600.12,0.33326667]
[1743374285378,1.74414901,601.49,600.12,0.33326667]
[1743374285574,0.30572238,601.48,600.12,0.33326667]
[1743374285975,2.35746763,601.49,600.12,0.33326667]
[1743374286178,4.48689468,601.49,600.12,0.33326667]
[1743374286379,0.919041,601.48,600.12,0.33326667]
[1743374286582,2.35746763,601.48,600.12,0.33326667]
[1743374287274,0.348,601.5,600.12,0.33326667]
[1743374287474,0.30571379,601.49,600.12,0.33326667]
[1743374287677,0.348,601.5,600.12,0.33326667]
[1743374291077,1.331,601.49,600.12,0.33326667]
[1743374299789,1.331,601.49,600.12,2.89166682]
[1743374301189,1.331,601.49,600.25,2.55840015]
[1743374301390,1.331,601.49,600.27,0.3331834]
[1743374302391,1.85,601.48,600.27,0.3331834]
[1743374308187,0.353,601.47,600.27,0.3331834]
[1743374323114,1.85,601.48,600.27,0.3331834]
[1743374326311,0.358,601.47,600.27,0.3331834]
[1743374337128,1.263,601.46,600.27,0.3331834]
[1743374342133,1.468,601.45,600.27,0.3331834]
[1743374344831,1.468,601.45,600.39,2.55840015]
[1743374345134,1.468,601.45,600.41,0.33310571]
[1743374346628,1.468,601.45,600.43,2.55840015]
[1743374346830,1.468,601.45,600.45,0.33308352]
[1743374372149,1.468,601.45,600.56,2.55840015]
[1743374372351,1.468,601.45,600.58,0.33301142]
[1743374375456,2.967,601.45,600.58,0.33301142]
[1743374382055,3.339,601.45,600.58,0.33301142]
[1743374453907,3.339,601.45,600.59,2.55840015]
[1743374454303,3.339,601.45,600.61,0.33299478]
[1743374456106,3.339,601.45,600.62,2.55840015]
[1743374456301,3.339,601.45,600.64,0.33297815]
[1743374457410,3.339,601.45,600.65,2.55840015]
[1743374457606,3.339,601.45,600.66,0.33296706]
[1743374459710,3.339,601.45,600.67,2.55840015]
[1743374460008,3.339,601.45,600.68,0.33295598]
[1743374464807,3.339,601.45,600.84,2.55840015]
[1743374465110,3.339,601.45,600.85,0.33286177]
[1743374473914,0.63590595,601.45,600.97,2.55840015]
[1743374474111,0.372,601.45,600.97,2.55840015]
[1743374474415,0.17251764,601.45,600.97,2.55840015]
[1743374474618,0.28933333,602.44,600.98,2.55840015]
[1743374475009,0.28933333,602.44,601.0,0.3327787]
[1743374476217,0.30528756,602.43,601.0,0.3327787]
[1743374477214,0.33199428,602.42,601.0,0.3327787]
[1743374477421,0.30528756,602.41,601.0,0.3327787]
[1743374477719,0.33200531,602.4,601.0,0.3327787]
[1743374477915,0.30528756,602.39,601.0,0.3327787]
[1743374478120,1.58028756,602.39,601.0,0.3327787]
[1743374478320,2.46530389,602.38,601.0,0.3327787]
[1743374478616,0.30528756,602.37,601.0,0.3327787]
[1743374479021,1.17807064,602.36,601.0,0.3327787]
[1743374479218,0.30528756,602.35,601.0,0.3327787]
[1743374479418,0.9255184,602.34,601.0,0.3327787]
[1743374479721,1.64708452,602.3,601.0,0.3327787]
[1743374479916,1.64708452,602.25,601.0,0.3327787]
[1743374480123,1.64708452,602.22,601.0,0.3327787]
[1743374480315,1.65392956,602.14,601.0,0.3327787]
[1743374480515,0.63756429,602.13,601.0,0.3327787]
[1743374480720,0.30541011,602.12,601.0,0.3327787]
[1743374481122,1.75336094,602.12,601.0,0.3327787]
[1743374481316,5.2455016,602.12,601.0,0.3327787]
[1743374481519,4.99565845,602.11,601.0,0.3327787]
[1743374481714,4.99565845,602.1,601.0,0.3327787]
[1743374481916,4.99565845,602.09,601.0,0.3327787]
[1743374482121,4.99565845,602.08,601.0,0.3327787]
[1743374482323,4.69019055,602.07,601.0,0.3327787]
[1743374482518,4.69019055,602.06,601.0,0.3327787]
[1743374482721,5.2455016,602.05,601.0,0.3327787]
[1743374482920,1.44795083,602.04,601.0,0.3327787]
[1743374483721,1.2149191,602.06,601.0,0.3327787]
[1743374484023,2.37913619,602.1,601.0,0.3327787]
[1743374484223,2.37908259,602.11,601.0,0.3327787]
[1743374484420,0.33215418,602.13,601.0,0.3327787]
[1743374495343,1.315,602.12,601.0,0.3327787]
[1743374496944,0.197,602.11,601.0,0.3327787]
[1743374501749,1.21921597,602.1,601.0,0.3327787]
[1743374502745,1.21921597,602.09,601.0,0.3327787]
[1743374503352,2.38235201,602.1,601.0,0.3327787]
[1743374504052,2.38238454,602.1,601.0,0.3327787]
[1743374505454,3.36696153,602.11,601.0,0.3327787]
[1743374506056,0.197,602.11,601.0,0.3327787]
[1743374511152,1.21921597,602.1,601.0,0.3327787]
[1743374512157,7.41289637,602.1,601.0,0.3327787]
[1743374512366,6.1936804,602.09,601.0,0.3327787]
[1743374512656,6.1936804,602.08,601.0,0.3327787]
[1743374512857,0.92783572,602.07,601.0,0.3327787]
[1743374513053,6.19356731,602.08,601.0,0.3327787]
[1743374513257,4.09779725,602.07,601.0,0.3327787]
[1743374513453,1.45434905,602.06,601.0,0.3327787]
[1743374513653,2.38218477,602.06,601.0,0.3327787]
[1743374513858,5.5521463,602.06,601.0,0.3327787]
[1743374514053,2.38218477,602.05,601.0,0.3327787]
[1743374514357,4.70886848,602.05,601.0,0.3327787]
[1743374514558,4.70886848,602.04,601.0,0.3327787]
[1743374514757,6.19324527,602.03,601.0,0.3327787]
[1743374514954,2.38218477,602.02,601.0,0.3327787]
[1743374515853,1.21921597,602.08,601.0,0.3327787]
[1743374516457,7.41191697,602.08,601.0,0.3327787]
[1743374516653,6.192701,602.07,601.0,0.3327787]
[1743374516858,6.192701,602.06,601.0,0.3327787]
[1743374517059,6.192701,602.05,601.0,0.3327787]
[1743374517260,2.38218477,602.04,601.0,0.3327787]
[1743374517455,3.83484409,602.05,601.0,0.3327787]
[1743374517656,2.38218477,602.04,601.0,0.3327787]
[1743374517860,3.83484409,602.07,601.0,0.3327787]
[1743374518056,0.92730795,602.06,601.0,0.3327787]
[1743374518362,2.38117674,602.06,601.0,0.3327787]
[1743374518561,0.197,602.11,601.0,0.3327787]
[1743374522165,2.57831947,602.11,601.0,0.3327787]
[1743374522467,5.748281,602.11,601.0,0.3327787]
[1743374522661,2.38131947,602.1,601.0,0.3327787]
[1743374522959,0.92749213,602.1,601.0,0.3327787]
[1743374523766,0.197,602.11,601.0,0.3327787]
[1743374526067,1.315,602.12,601.0,0.3327787]
[1743374527768,1.784,602.11,601.0,0.3327787]
[1743374529367,0.204,602.1,601.0,0.3327787]
[1743374540577,1.266,602.09,601.0,0.3327787]
[1743374554796,0.21,602.08,601.0,0.3327787]
[1743374564002,1.402,602.08,601.0,0.3327787]
[1743374587720,3.216,602.08,601.0,0.3327787]
[1743374619241,3.216,602.08,601.02,2.55840015]
[1743374620542,3.216,602.08,601.04,0.33275655]
[1743374621146,3.216,602.08,601.29,2.55840015]
[1743374621745,3.216,602.08,601.3,0.33261267]
[1743374639058,3.216,602.08,601.31,2.55840015]
[1743374639256,3.216,602.08,601.32,0.3326016]
[1743374641357,3.216,602.08,601.43,2.55840015]
[1743374641557,3.216,602.08,601.44,0.33253524]
[1743374683091,3.216,602.08,600.77,2.55840015]
[1743374683291,3.216,602.08,600.79,0.33289502]
[1743374683991,3.216,602.08,600.8,0.28934175]
[1743374684389,3.216,602.08,600.81,0.33288394]
[1743374685291,6.37702773,602.08,600.81,0.33288394]
[1743374685891,3.216,602.08,600.81,0.33288394]
[1743374694801,1.44762848,602.07,600.81,0.33288394]
[1743374694997,2.4013964,602.07,600.81,0.33288394]
[1743374695202,2.37133378,602.08,600.81,0.33288394]
[1743374695402,6.16463796,602.08,600.81,0.33288394]
[1743374695599,2.4013964,602.07,600.81,0.33288394]
[1743374695795,2.80137565,602.07,600.81,0.33288394]
[1743374696001,0.2894007,602.06,600.81,0.33288394]
[1743374696203,4.1381977,602.06,600.81,0.33288394]
[1743374696403,6.45356001,602.06,600.81,0.33288394]
[1743374696702,5.56242413,602.05,600.81,0.33288394]
[1743374696900,0.2894007,602.06,600.81,0.33288394]
[1743374697105,1.21252649,602.05,600.81,0.33288394]
[1743374697903,0.242,602.04,600.81,0.33288394]
[1743374698305,1.776,602.03,600.81,0.33288394]
[1743374698499,3.22311896,602.03,600.81,0.33288394]
[1743374698699,1.407,602.02,600.81,0.33288394]
[1743374699103,5.30940093,602.02,600.81,0.33288394]
[1743374699303,1.44711896,602.01,600.81,0.33288394]
[1743374699507,3.84753734,602.01,600.81,0.33288394]
[1743374699708,7.00010622,602.01,600.81,0.33288394]
[1743374699906,2.3703568,602.0,600.81,0.33288394]
[1743374700509,9.31418748,602.01,600.81,0.33288394]
[1743374700805,1.21252649,601.99,600.81,0.33288394]
[1743374701008,5.05956324,601.99,600.81,0.33288394]
[1743374701205,1.44711896,601.98,600.81,0.33288394]
[1743374701612,1.21252649,601.98,600.81,0.33288394]
[1743374701814,3.58288329,601.98,600.81,0.33288394]
[1743374702013,1.21252649,601.98,600.81,0.33288394]
[1743374702711,2.61952649,602.02,600.81,0.33288394]
[1743374702909,3.54220406,602.02,600.81,0.33288394]
[1743374703108,2.61952649,602.02,600.81,0.33288394]
[1743374703509,1.407,602.02,600.81,0.33288394]
[1743374704714,2.32989679,602.02,600.81,0.33288394]
[1743374704910,4.06603416,602.02,600.81,0.33288394]
[1743374705313,3.15256888,602.01,600.81,0.33288394]
[1743374705511,5.52216022,602.01,600.81,0.33288394]
[1743374705712,2.36959134,602.0,600.81,0.33288394]
[1743374707417,3.58211783,602.01,600.81,0.33288394]
[1743374708018,0.28944403,602.0,600.81,0.33288394]
[1743374708613,0.30551098,601.99,600.81,0.33288394]
[1743374708914,2.44093426,601.99,600.81,0.33288394]
[1743374709113,0.30551098,601.98,600.81,0.33288394]
[1743374709313,5.54644832,601.98,600.81,0.33288394]
[1743374709513,0.30551098,601.97,600.81,0.33288394]
[1743374709711,6.21827213,601.97,600.81,0.33288394]
[1743374709914,3.84738241,601.96,600.81,0.33288394]
[1743374710111,3.84982636,601.95,600.81,0.33288394]
[1743374710313,3.84982636,601.94,600.81,0.33288394]
[1743374710517,5.06235285,601.93,600.81,0.33288394]
[1743374710717,3.84982636,601.92,600.81,0.33288394]
[1743374710919,0.92379215,601.91,600.81,0.33288394]
[1743374711114,1.47785321,601.92,600.81,0.33288394]
[1743374711320,0.2894681,601.93,600.81,0.33288394]
[1743374711522,0.30553067,601.92,600.81,0.33288394]
[1743374712217,0.2894681,601.93,600.81,0.33288394]
[1743374712412,1.21252649,601.91,600.81,0.33288394]
[1743374712821,0.30554163,601.9,600.81,0.33288394]
[1743374713219,0.30554872,601.89,600.81,0.33288394]
[1743374713420,6.47157756,601.89,600.81,0.33288394]
[1743374713617,2.40164536,601.88,600.81,0.33288394]
[1743374713920,7.6671496,601.88,600.81,0.33288394]
[1743374714220,2.37058708,601.87,600.81,0.33288394]
[1743374714816,1.21252649,601.92,600.81,0.33288394]
[1743374715018,0.30554109,601.91,600.81,0.33288394]
[1743374715319,1.51806758,601.91,600.81,0.33288394]
[1743374715520,1.21252649,601.91,600.81,0.33288394]
[1743374716216,1.21252649,601.9,600.81,0.33288394]
[1743374716721,4.55956888,602.02,600.81,0.33288394]
[1743374717516,1.407,602.02,600.81,0.33288394]
[1743374720525,0.246,602.01,600.81,0.33288394]
[1743374736338,1.584,602.0,600.81,0.33288394]
[1743374752450,0.252,601.99,600.81,0.33288394]
[1743374752645,0.30549034,601.98,600.81,0.33288394]
[1743374752848,0.252,601.99,600.81,0.33288394]